[Event "XIII Marques de Pombal 2022"]
[Site "Pombal"]
[Date "2022.10.08"]
[Round "6.8"]
[White "Morais, Vitor Mestre"]
[Black "Alves, Fernando Pereira Rib"]
[Result "1-0"]
[ECO "A06"]
[WhiteElo "1802"]
[BlackElo "1526"]
[Annotator "NA RC COMBH"]
[PlyCount "109"]
[EventDate "2022.09.28"]
[EventType "swiss"]
[EventCountry "POR"]
[SourceTitle "playchess.com"]
[Source "ChessBase"]
[SourceQuality "1"]
[TimeControl "5400+30"]

1. Nf3 {[%emt 0:00:04]} d5 {[%emt 0:02:46]} 2. d4 {[%emt 0:00:09]} Bf5 {[%emt 0:00:23]} 3. Bf4 {[%emt 0:00:09]} Nf6 {[%emt 0:00:21]} 4. e3 {[%emt 0:00:07]} Nbd7 {[%emt 0:00:37]} 5. Be2 {[%emt 0:00:15]} h6 {[%emt 0:05:29]} 6. h3 {[%emt 0:00:18]} e6 {[%emt 0:00:46]} 7. O-O {[%emt 0:00:06]} Bd6 {[%emt 0:05:31]} 8. Bh2 {[%emt 0:00:13]} Qe7 {[%emt 0:05:44]} 9. Nbd2 {[%emt 0:00:11]} Bxh2+ 10. Nxh2 e5 {[%emt 0:05:47]} 11. c3 {[%emt 0:00:53]} O-O {[%emt 0:04:19]} 12. dxe5 {[%emt 0:00:25]} Nxe5 {[%emt 0:03:50]} 13. Nhf3 {[%emt 0:00:27]} Rad8 {[%emt 0:09:09]} 14. Nd4 {[%emt 0:00:16]} (14. Nxe5 $11 Qxe5 15. Qa4) 14... Bc8 {[%emt 0:00:49]} 15. Qc2 {[%emt 0:00:22]} Rfe8 {[%emt 0:14:12]} 16. Rae1 $15 {[%emt 0:00:13]} c5 {[%emt 0:09:34]} 17. Nf5 {[%emt 0:00:14]} Qd7 {[%emt 0:00:26]} 18. Ng3 {[%emt 0:00:15]} c4 {[%emt 0:00:37]} 19. Rd1 {[%emt 0:01:26]} Qc6 {[%emt 0:03:25]} 20. Nf3 {[%emt 0:00:35]} Qc7 {[%emt 0:12:07]} 21. Nd4 {[%emt 0:01:56]} a6 {[%emt 0:04:12]} 22. Rfe1 {[%emt 0:00:19]} b5 {[%emt 0:00:33]} 23. Bf1 {[%emt 0:00:23]} Bb7 {[%emt 0:00:40]} 24. a3 {[%emt 0:02:29]} Nfd7 {[%emt 0:05:03]} 25. f4 {[%emt 0:03:51]} Ng6 {[%emt 0:01:27]} 26. Qf2 {[%emt 0:00:13]} Nc5 {[%emt 0:00:22]} 27. Qf3 {[%emt 0:01:41]} Ne4 {[%emt 0:02:57]} 28. Ngf5 {[%emt 0:01:59]} Qb6 {[%emt 0:02:01]} 29. g4 {[%emt 0:00:19]} Qf6 {[%emt 0:00:10]} 30. Re2 {[%emt 0:02:58]} Nh4 {[%emt 0:00:20]} 31. Nxh4 {[%emt 0:00:22]} Qxh4 {[%emt 0:00:09]} 32. Rg2 {[%emt 0:00:12]} Bc8 {[%emt 0:01:02]} 33. Ra1 {[%emt 0:07:08]} h5 {[%emt 0:00:33]} (33... Rd6 $15 {was preferrable.}) 34. a4 {[%emt 0:03:02] [#]} (34. gxh5 $11 {keeps the balance.} Kh8 35. Kh2) 34... f5 $2 {[%emt 0:01:01] [#]} (34... bxa4 $1 $17 {and life is bright.} 35. gxh5 Bd7) 35. g5 $1 {[%emt 0:02:00]} ({Much less strong is} 35. Nxf5 $6 Bxf5 36. gxf5 bxa4 $14) ({But not} 35. gxf5 $6 bxa4 36. Be2 (36. Rxa4 Qe1 $11) 36... a3 37. Rxa3 Qe1+ 38. Qf1 Qxf1+ 39. Kxf1 Nf6 $14) 35... g6 {[%emt 0:00:20]} 36. axb5 {[%emt 0:00:08]} axb5 {[%emt 0:00:10] [#]} 37. Nxb5 {[%emt 0:00:25]} (37. Kh2 $1 $18 {and the rest is easy.}) 37... Re6 $2 {[%emt 0:00:16]} (37... Bb7 $16 {might work better.}) 38. Nd4 {[%emt 0:00:19]} Rb6 $2 {[%emt 0:00:08]} (38... Nc5 39. Nxe6 Bxe6) 39. Rc2 {[%emt 0:06:03]} Ba6 $2 {[%emt 0:01:02]} (39... Qg3+ $16 {was necessary.} 40. Qxg3 Nxg3) 40. Kh2 {[%emt 0:00:42]} Rdb8 {[%emt 0:00:28]} 41. Bg2 {[%emt 0:04:30]} Bc8 {[%emt 0:01:00]} 42. Ra2 {[%emt 0:00:36]} Bd7 {[%emt 0:00:19]} 43. Qe2 {[%emt 0:02:51]} Qg3+ {[%emt 0:00:37]} 44. Kh1 {[%emt 0:00:11]} Qxh3+ {[%emt 0:01:06]} 45. Bxh3 {[%emt 0:00:23]} Ng3+ {[%emt 0:00:16]} 46. Kh2 {[%emt 0:00:21]} Nxe2 {[%emt 0:00:03]} 47. Rxe2 {[%emt 0:00:17]} Be8 {[%emt 0:01:15]} 48. Bg2 {[%emt 0:00:17]} Bf7 {[%emt 0:00:12]} 49. Kg3 {[%emt 0:00:30]} R8b7 {[%emt 0:00:24]} 50. Rd2 {[%emt 0:00:20]} Re7 {[%emt 0:00:13]} 51. Kf2 {[%emt 0:00:17]} h4 {[%emt 0:00:24]} 52. Nf3 {[%emt 0:00:30]} Rb3 {[%emt 0:01:19]} 53. Nxh4 {[%emt 0:01:44]} Reb7 {[%emt 0:00:15]} 54. Nf3 {[%emt 0:00:16]} Rb8 {[%emt 0:00:47]} 55. Ne5 {[%emt 0:00:12]} 1-0

[Event "XIII Marques de Pombal 2022"]
[Site "Pombal"]
[Date "2022.10.09"]
[Round "7.1"]
[White "Almeida, Joao Pedro Dias"]
[Black "Khamrakulov, Ibragim S."]
[Result "1/2-1/2"]
[ECO "B40"]
[WhiteElo "1901"]
[BlackElo "2421"]
[Annotator "TA"]
[PlyCount "39"]
[EventDate "2022.09.28"]
[EventType "swiss"]
[EventCountry "POR"]
[SourceTitle "playchess.com"]
[Source "ChessBase"]
[SourceQuality "1"]
[TimeControl "5400+30"]

{[%evp 9,26,6,13,13,15,10,11,12,31,25,28,17,12,10,55,49,54,56,58]} 1. e4 {[%emt 0:00:03]} c5 {[%emt 0:00:08]} 2. Nf3 {[%emt 0:00:05][%cal Bg1f3,Bf3d4,Bd4b3][%mdl 32]} e6 {[%emt 0:00:04]} 3. c4 {[%emt 0:00:05]} Nc6 {[%emt 0:03:54]} 4. d4 {[%emt 0:00:04]} cxd4 {[%emt 0:01:06]} 5. Nxd4 {[%emt 0:00:02]} Bc5 {[%emt 0:00:12]} 6. Nb3 {[%emt 0:03:55] B44: Sicilian: Taimanov: 5 Nb5.} Bb4+ {[%emt 0:01:45]} 7. Nc3 {[%emt 0:02:01]} Nf6 {[%emt 0:00:59]} 8. Bd3 {[%emt 0:00:03] The position is equal.} d5 {[%emt 0:00:32]} 9. exd5 {[%emt 0:00:47]} (9. cxd5 {is more complex.} exd5 10. exd5 Bxc3+ 11. bxc3 Qxd5 12. O-O) 9... exd5 {[%emt 0:00:52]} 10. cxd5 {[%emt 0:00:43]} Nxd5 {[%emt 0:01:21]} 11. O-O {[%emt 0:00:03]} Nxc3 {[%emt 0:06:59]} 12. bxc3 {[%emt 0:00:07]} Be7 {[%emt 0:00:14]} 13. Bf4 {[%emt 0:02:45]} Be6 {[%emt 0:14:12] [#]  Weighted Error Value: White=0.02 (flawless) /Black=0.12 (very precise)} {Predecessor:} 14. Re1 $146 Qd7 15. Qf3 Rd8 16. Rad1 Qc8 17. Nd4 Nxd4 18. cxd4 O-O 19. Be5 Bd6 20. Qe4 {½-½ (35) Eljanov,P (2663)-Abasov,N (2632) Douglas 2019} 1/2-1/2

[Event "XIII Marques de Pombal 2022"]
[Site "Pombal"]
[Date "2022.10.09"]
[Round "7.2"]
[White "Paiva, Manuel Maria Fonseca"]
[Black "Padeiro, Jose Joao Tato"]
[Result "0-1"]
[ECO "B02"]
[WhiteElo "1451"]
[BlackElo "2215"]
[Annotator "TA"]
[PlyCount "102"]
[EventDate "2022.09.28"]
[EventType "swiss"]
[EventCountry "POR"]
[SourceTitle "playchess.com"]
[Source "ChessBase"]
[SourceQuality "1"]
[TimeControl "5400+30"]

{[%evp 9,102,-5,17,6,18,20,31,29,47,-18,-8,-6,-7,-38,-38,-43,-17,-30,-23,-22,0,0,0,0,0,-31,-35,-29,-34,-35,-6,-67,-62,-75,-75,-75,-45,-41,-35,-63,-23,-42,-17,-21,-21,-30,-8,-12,-9,-75,-2,-6,0,-6,0,-7,-12,-132,-123,-123,-124,-98,-87,-192,-193,-320,-320,-306,-308,-400,-382,-531,-498,-741,-715,-899,-647,-940,-839,-2067,-2067,-1919,-1852,-29960,-12810,-2822,-2439,-29974,-12039,-29979,-29981,-29984,-29985,-29985,-29984]} 1. e4 {[%emt 0:00:09][%cal Be2e4,Be4e5][%mdl 32]} Nf6 {[%emt 0:00:05]} 2. Nc3 {[%emt 0:00:49]} d5 {[%emt 0:00:07]} 3. e5 {[%emt 0:01:26]} d4 {[%emt 0:00:41]} 4. exf6 {[%emt 0:00:11]} dxc3 {[%emt 0:00:08]} 5. fxe7 {[%emt 0:00:37]} cxd2+ {[%emt 0:01:43]} (5... Qxe7+ {seems wilder.} 6. Be2 cxb2 7. Bxb2 Bg4) 6. Qxd2 {[%emt 0:01:57][%csl Gd2][%cal Re7d8] [#] B02: Alekhine's Defence: Chase Variation and lines with early Nc3.} Bxe7 {[%emt 0:01:29][%cal Bf8e7,Be7d8,Bd8a5,Ba5b6][%mdl 32]} 7. Qxd8+ {[%emt 0:00:32]} Bxd8 {[%emt 0:00:03]} 8. Bf4 {[%emt 0:03:27] White is slightly better.} Be6 {[%emt 0:02:23] [#]} 9. Bb5+ $146 {[%emt 0:04:58]} (9. Nf3 $14) ({Predecessor:} 9. O-O-O O-O 10. Nf3 Nd7 11. Bd3 Nc5 12. Ng5 Nxd3+ 13. Rxd3 Bf5 14. Rd2 c6 15. Nf3 {0-1 (47) Morczynski,R (1134)-Sadzikowski,M (1749) Krakow 2022}) 9... c6 $11 {[%emt 0:00:44]} 10. Bd3 {[%emt 0:00:33]} Nd7 {[%emt 0:01:36]} 11. Bd6 {[%emt 0:02:10]} Ba5+ {[%emt 0:00:35]} 12. b4 {[%emt 0:10:34]} Bb6 {[%emt 0:00:11]} 13. Ne2 {[%emt 0:03:23] Prevents Bd4.} O-O-O {[%emt 0:02:29][%cal Ba8d8,Bd8d4,Bd4c4][%mdl 32]} 14. O-O {[%emt 0:03:51]} Nf8 {[%emt 0:09:43]} 15. Be5 {[%emt 0:06:38]} f6 {[%emt 0:00:26]} 16. Bg3 {[%emt 0:00:24]} Ng6 {[%emt 0:01:48]} 17. Nf4 {[%emt 0:03:16]} Nxf4 {[%emt 0:00:13]} 18. Bxf4 {[%emt 0:00:04]} Rd4 {[%emt 0:10:37][%csl LRb4,LRf4]} 19. Bd2 {[%emt 0:03:50]} Bf7 {[%emt 0:10:05]} (19... Bc4 $5 {[%cal Rc4d3]} 20. Bf5+ Kc7 $15) 20. a3 {[%emt 0:04:12]} ({White should play} 20. Bc3 $11) 20... Bg6 $15 {[%emt 0:02:24]} 21. Bxg6 {[%emt 0:05:36]} hxg6 {[%emt 0:00:30]} ({Reject} 21... Rxd2 $6 22. Bf5+ Kb8 23. Rae1 $11) 22. Be3 {[%emt 0:03:59]} Rc4 {[%emt 0:00:49]} (22... Rdh4 $5 {[%cal Rh4h2]} 23. Bxb6 Rxh2 $17) 23. Bxb6 {[%emt 0:00:30]} axb6 {[%emt 0:00:01][%mdl 4096] Endgame KRR-KRR} 24. Rfe1 {[%emt 0:00:48]} Rd8 {[%emt 0:00:41]} 25. Re2 {[%emt 0:00:58]} Rd7 {[%emt 0:07:17]} 26. g3 {[%emt 0:02:09]} g5 {[%emt 0:00:34]} 27. Kg2 {[%emt 0:01:18]} Kc7 {[%emt 0:00:31]} 28. h3 {[%emt 0:02:04]} Rc3 {[%emt 0:04:52]} 29. g4 {[%emt 0:02:11]} (29. a4 $11 {remains equal.}) 29... c5 {[%emt 0:02:18] Black is more active.} (29... b5 $17) 30. b5 $11 {[%emt 0:02:35]} Rc4 {[%emt 0:02:48]} 31. a4 {[%emt 0:00:27]} Rcd4 {[%emt 0:00:35]} 32. Ra3 {[%emt 0:01:32]} Kd6 {[%emt 0:02:43]} 33. a5 {[%emt 0:09:32]} (33. Re8 $11 {keeps the balance.}) 33... bxa5 $17 {[%emt 0:01:16]} 34. Rxa5 {[%emt 0:00:01]} Kc7 {[%emt 0:05:01]} 35. Re6 {[%emt 0:00:56] Black must now prevent b6+.} R4d6 {[%emt 0:00:54] Inhibits b6+.} 36. Re4 {[%emt 0:06:02] [#]} (36. Rxd6 $17 {is a better defense.} Rxd6 37. Ra3) 36... Kb6 $1 $19 {[%emt 0:04:45]} 37. Rea4 {[%emt 0:00:05]} (37. Ra2 $142) 37... Rd2 {[%emt 0:02:01]} 38. Ra2 {[%emt 0:00:06]} R7d4 {[%emt 0:01:36] Hoping for ...Rf4.} 39. R5a3 {[%emt 0:07:10]} Rc4 {[%emt 0:03:01]} 40. Re3 {[%emt 0:02:06]} Rcxc2 {[%emt 0:01:25]} 41. Rxc2 {[%emt 0:00:11]} (41. Re6+ $142 Kxb5 42. Rxc2 Rxc2 43. Re7) 41... Rxc2 {[%emt 0:00:04] KR-KR} 42. Re7 {[%emt 0:00:05]} Rd2 {[%emt 0:04:52] Threatens to win with ...c4.} 43. Rxg7 {[%emt 0:00:52]} c4 {[%emt 0:00:12][%cal Bc5c4,Bc4c3][%mdl 32] ...c3 is the strong threat.} 44. Kf3 {[%emt 0:02:46]} c3 {[%emt 0:01:06]} 45. Rg8 {[%emt 0:01:37]} Kxb5 {[%emt 0:00:52]} 46. Ke3 {[%emt 0:01:15] Inhibits Rd4.} Rd1 {[%emt 0:01:24]} (46... Kb4 $142 47. Ra8 Rd1 48. Rc8 Kb3 49. Rb8 Rd7 50. Rc8 c2 51. Ke2 Rd1 52. f3 c1=Q 53. Rxc1 Rxc1 54. Kd3 Rc4 55. Ke2 b5 56. Kf2 b4 57. h4 Rc2+ 58. Ke3 gxh4 59. f4 h3 60. g5 h2 61. Ke4 fxg5 62. Kf5 h1=Q 63. fxg5 Qd5+ 64. Kf4 Rc3 65. g6 Rf3+ 66. Kg4 Qf5+ 67. Kh4 Rh3#) 47. Rc8 Kb4 {[%emt 0:00:18]} 48. f4 {[%emt 0:01:42]} b5 {[%emt 0:00:23] ( -> ...Kb3)} 49. Rc6 {[%emt 0:00:46]} Kb3 {[%emt 0:00:14] Black mates.} 50. Rxf6 {[%emt 0:00:20]} gxf4+ {[%emt 0:00:38]} 51. Kxf4 {[%emt 0:00:58]} Rf1+ {[%emt 0:00:11] Weighted Error Value: White=0.89/Black=0.22 (precise)} 0-1

[Event "XIII Marques de Pombal 2022"]
[Site "Pombal"]
[Date "2022.10.09"]
[Round "7.3"]
[White "Ferreira, Hugo Miguel Da Costa"]
[Black "Farias, David Nuno M E"]
[Result "0-1"]
[ECO "A48"]
[WhiteElo "2101"]
[BlackElo "1863"]
[Annotator "TA"]
[PlyCount "104"]
[EventDate "2022.09.28"]
[EventType "swiss"]
[EventCountry "POR"]
[SourceTitle "playchess.com"]
[Source "ChessBase"]
[SourceQuality "1"]
[TimeControl "5400+30"]

{[%evp 16,104,-18,-23,0,0,0,-16,0,-53,-53,-66,-50,-63,-39,-47,-31,-32,-29,-111,-7,-54,-49,-50,-59,-54,-46,-108,-99,-158,-158,-168,-158,-160,-126,-173,-165,-168,-172,-185,-192,-201,-215,-249,-149,-141,0,-358,-206,-200,-37,-34,-47,-141,-129,-255,-211,-419,-412,-415,-415,-399,-320,-327,-327,-317,-308,-397,-369,-394,-388,-609,-465,-429,0,-605,-612,-700,-707,-660,-464,-407,-352,-366,-338,-364,-352,-425,-416,-1215,-1147]} 1. d4 {[%emt 0:00:02]} Nf6 {[%emt 0:00:05]} 2. Nf3 {[%emt 0:00:10]} g6 {[%emt 0:00:39]} 3. Bg5 {[%emt 0:00:10]} d5 {[%emt 0:06:51]} 4. Nbd2 {[%emt 0:00:18]} Bg7 {[%emt 0:03:42]} 5. e3 {[%emt 0:00:29]} O-O {[%emt 0:01:19]} 6. Bd3 {[%emt 0:03:31]} Nbd7 {[%emt 0:03:06]} 7. c3 {[%emt 0:01:05]} b6 {[%emt 0:05:25]} 8. Qb1 {[%emt 0:12:59]} Bb7 {[%emt 0:05:33]} 9. O-O {[%emt 0:08:15]} c5 {[%emt 0:06:31] D03: 1 d4 d5 2 Nf3 Nf6 3 Bg5, including Torre Attack with early ...d5.} 10. a4 {[%emt 0:02:05]} a6 {[%emt 0:03:15] [#]} 11. Re1 $146 {[%emt 0:05:51]} ({Predecessor:} 11. b4 cxd4 12. cxd4 e6 13. h3 Rc8 14. Ne5 h6 15. Bh4 g5 16. Bg3 Rc3 17. Qb2 {1-0 (50) Erigaisi,A (2559)-Gukesh,D (2563) Chess.com INT 2020}) 11... Rc8 {[%emt 0:04:00] The position is equal.} 12. e4 {[%emt 0:10:57]} (12. b4 $11) 12... cxd4 $15 {[%emt 0:05:52]} 13. cxd4 {[%emt 0:18:17]} dxe4 {[%emt 0:02:08]} 14. Nxe4 {[%emt 0:00:15]} Qc7 {[%emt 0:02:30]} 15. Ra3 {[%emt 0:13:35]} Qb8 {[%emt 0:08:39]} 16. Ned2 {[%emt 0:15:41]} Rfe8 {[%emt 0:04:52]} 17. Ne5 {[%emt 0:00:15]} (17. Rb3 $11 {keeps the balance.}) 17... Nf8 {[%emt 0:11:43]} (17... Nxe5 $17 18. dxe5 Ng4) 18. Ndc4 {[%emt 0:02:30]} ({Reject} 18. Qa2 Ne6 19. Ndf3 Bd5 $15) (18. Ndf3 $11) 18... Nd5 {[%emt 0:00:46]} 19. Bh4 {[%emt 0:02:34]} Ne6 {[%emt 0:04:58]} 20. Bg3 {[%emt 0:00:28][%cal Re5g6] aiming for Nxg6!} Qa7 {[%emt 0:00:50]} (20... Nxd4 21. Nxg6 $1 Qa7 22. Nf4 $16) 21. Bf1 {[%emt 0:00:56]} (21. Qd1 $15) 21... Nxd4 $17 {[%emt 0:01:36]} 22. Rd3 {[%emt 0:00:04] [#]} (22. Qe4 $142 Nf5 23. Qg4) 22... Nf5 $1 {[%emt 0:01:45]} 23. Qd1 {[%emt 0:00:47]} e6 {[%emt 0:03:19]} 24. Qb3 {[%emt 0:00:11]} Nxg3 {[%emt 0:03:24]} 25. hxg3 {[%emt 0:00:01]} (25. Rxg3 $17 Red8 26. Rf3) 25... Red8 $19 {[%emt 0:00:21]} 26. Rf3 {[%emt 0:01:25]} Rc7 {[%emt 0:02:29]} 27. g4 {[%emt 0:00:15]} h6 {[%emt 0:01:34]} 28. g5 {[%emt 0:00:49]} hxg5 {[%emt 0:01:16]} 29. Rd3 {[%emt 0:00:15]} Rb8 {[%emt 0:03:20]} (29... b5 $19 30. axb5 axb5) 30. Nd6 {[%emt 0:00:30] Hoping for Nexf7.} Nf4 {[%emt 0:01:12]} ({Better is} 30... b5 $17 {Strongly threatening ...Bxe5.} 31. axb5 axb5) 31. Rg3 $2 {[%emt 0:00:46][%mdl 8192]} (31. Ndxf7 $11 {and White has nothing to worry.} Qa8 32. Nxg5) 31... Bd5 {[%emt 0:01:14]} (31... Bxe5 $142 32. Rxe5 Bd5) 32. Qe3 {[%emt 0:00:13]} Bf6 {[%emt 0:00:36]} (32... b5 $19 {Threatens to win with ...Qxe3.} 33. axb5 axb5 34. Qxa7 Rxa7) 33. Ng4 $15 {[%emt 0:00:44]} Be7 {[%emt 0:00:54]} (33... Bxb2 34. Nh6+ Kh7 35. Rxg5 $11) 34. Nh6+ {[%emt 0:00:15] [#] Pair of Knights! Black continues to play with concentration.} (34. Qe5 $1 $15 Nh5 35. Nh6+ Kh7 36. Nhxf7 Nxg3 37. Qxg3 Bxd6 38. Nxg5+ Kg8 39. Qxd6) 34... Kg7 $1 $17 {[%cal Bg8g7,Bg7f7,Bf7e7][%mdl 32]} 35. Ndxf7 {[%emt 0:00:10]} (35. Nhxf7 $17 {was forced.} b5 36. Rxg5 (36. Qe5+ $2 Bf6 $19) 36... Qxe3 37. fxe3) 35... Rf8 {[%emt 0:01:31]} 36. Bd3 $2 {[%emt 0:01:03]} (36. Rg4 {might work better.} b5 37. Qxa7 Rxa7 38. g3) 36... Rxf7 $19 {[%emt 0:00:18] Dancing on a razor blade.} 37. Nxf7 {[%emt 0:00:03]} Kxf7 {[%emt 0:00:02]} 38. Be4 {[%emt 0:00:46]} Bxe4 {[%emt 0:00:51]} 39. Qxe4 {[%emt 0:00:01]} Qb7 {[%emt 0:00:28]} 40. Qxb7 {[%emt 0:01:18]} Rxb7 {[%emt 0:00:08]} 41. Rge3 {[%emt 0:00:25]} Bc5 {[%emt 0:00:41]} 42. Rf3 {[%emt 0:00:26]} Ke7 {[%emt 0:00:43] And now ...Rd7 would win.} 43. Rg3 {[%emt 0:00:35]} (43. g3 $142 Nh3+ 44. Kg2) 43... Kf6 {[%emt 0:00:49]} 44. Rf3 {[%emt 0:00:03]} Ke7 {[%emt 0:00:01]} (44... Rd7 $142 45. g3 Rd3 46. Rxd3 Nxd3) 45. Rg3 $1 {[%emt 0:00:02]} Rd7 {[%emt 0:00:27]} 46. Rxg5 {[%emt 0:00:28]} Rd2 {[%emt 0:00:39][%csl LRb2,LRf2]} 47. Re4 {[%emt 0:00:02]} Nd3 {[%emt 0:01:06]} 48. Rxg6 {[%emt 0:00:10]} Bxf2+ {[%emt 0:00:27]} 49. Kh2 {[%emt 0:00:11]} Nc5 {[%emt 0:00:20]} ({Not} 49... Rxb2 50. Rexe6+ Kf8 51. Ref6+ Ke8 52. Re6+ Kf8 53. Ref6+ Ke8 54. Re6+ Kf8 $11) 50. Rb4 {[%emt 0:00:42]} Rd4 {[%emt 0:00:37]} 51. Rg4 {[%emt 0:02:03]} e5 {[%emt 0:00:27][%cal Be6e5,Be5d4][%mdl 32]} 52. Rgxd4 {[%emt 0:00:40]} (52. Kh3 $142 Rxb4 53. Rxb4) 52... exd4 {[%emt 0:00:08] Weighted Error Value: White=0.53/Black=0.45} 0-1

[Event "XIII Marques de Pombal 2022"]
[Site "Pombal"]
[Date "2022.10.09"]
[Round "7.4"]
[White "Goncalves, Lucas Jordao"]
[Black "Gori, Andrea"]
[Result "1-0"]
[ECO "C54"]
[WhiteElo "1849"]
[BlackElo "1982"]
[Annotator "TA"]
[PlyCount "57"]
[EventDate "2022.09.28"]
[EventType "swiss"]
[EventCountry "POR"]
[SourceTitle "playchess.com"]
[Source "ChessBase"]
[SourceQuality "1"]
[TimeControl "5400+30"]

{[%evp 9,57,-53,32,8,29,36,69,-3,84,-80,28,29,82,82,71,76,91,99,100,100,103,129,112,104,154,162,131,120,138,124,287,200,252,159,340,352,5165,5165,4826,4826,2642,3343,29987,29988,29988,29989,29994,29995,29995,29996]} 1. e4 {[%emt 0:00:05]} e5 {[%emt 0:00:07]} 2. Nf3 {[%emt 0:00:28]} Nc6 {[%emt 0:00:06]} 3. Bc4 {[%emt 0:00:05]} Bc5 {[%emt 0:00:06]} 4. c3 {[%emt 0:00:04]} Nf6 {[%emt 0:00:13]} 5. O-O {[%emt 0:00:35]} Bb6 {[%emt 0:09:35]} (5... Nxe4 $15 6. d3 d5 7. dxe4 (7. Bb5 Nxf2 8. Rxf2 Bxf2+ 9. Kxf2 O-O $15) 7... dxc4) 6. d4 {[%emt 0:00:09] C54: Giuoco Piano: 4 c3 Nf6, main lines with 5 d4 and 5 d3.} O-O {[%emt 0:05:15]} 7. dxe5 {[%emt 0:00:10]} Nxe4 {[%emt 0:01:29] [#]} 8. a4 $146 {[%emt 0:09:49]} ({Better is} 8. Bd5 $14 Nc5 9. a4) ({Predecessor:} 8. b4 d6 9. Bd5 Nxf2 10. Rxf2 Bxf2+ 11. Kxf2 Nxe5 12. Bg5 Qe8 13. Qd4 c6 14. Bb3 {1-0 (48) Dishank,S (1477)-Shaik,S (1852) New Delhi 2022}) 8... a5 {[%emt 0:03:03]} (8... d6 $11 {remains equal.}) 9. b4 $2 {[%emt 0:13:21]} (9. Bd5 $16 {and life is bright.} Nc5 10. Bg5) 9... Ne7 {[%emt 0:10:07]} (9... axb4 $17 {And now ...d6 would win.} 10. cxb4 Nxb4) 10. Bd5 $11 {[%emt 0:07:18]} Nxd5 {[%emt 0:04:31]} (10... Nxf2 $11 11. Rxf2 d6) 11. Qxd5 $16 {[%emt 0:00:06]} Nxf2 {[%emt 0:00:11]} 12. Rxf2 {[%emt 0:00:08]} Bxf2+ {[%emt 0:01:34]} 13. Kxf2 {[%emt 0:00:03]} d6 {[%emt 0:01:49] [#]} 14. exd6 $1 {[%emt 0:00:52] White is much more active. The black rooks are badly placed.} ({But not} 14. bxa5 $6 dxe5 15. Qxe5 Re8 $11) 14... Qxd6 {[%emt 0:00:11]} 15. Qxd6 {[%emt 0:00:04]} cxd6 {[%emt 0:00:09]} 16. Bf4 {[%emt 0:00:43]} Rd8 {[%emt 0:00:22]} (16... Bf5 $142) 17. Nbd2 {[%emt 0:00:46]} Be6 {[%emt 0:01:48]} 18. Ne4 {[%emt 0:03:08]} axb4 {[%emt 0:02:43]} 19. cxb4 {[%emt 0:00:44]} d5 $2 {[%emt 0:01:59]} (19... Rdc8 $16) 20. Nd6 {[%emt 0:00:08]} Rd7 {[%emt 0:00:59]} 21. Rc1 {[%emt 0:04:41]} g5 $2 {[%emt 0:02:33] Black cannot hold the game after this.} (21... b6 $16 22. a5 bxa5) 22. Nxg5 $18 {[%emt 0:02:16]} Rxa4 $2 {[%emt 0:00:48]} (22... b6 23. a5 bxa5) 23. Rc8+ {[%emt 0:01:27]} Kg7 {[%emt 0:00:20]} 24. Be5+ {[%emt 0:02:24]} Kh6 {[%emt 0:00:36]} 25. Rg8 {[%emt 0:00:11]} Rxb4 {[%emt 0:01:00]} 26. Nxe6 {[%emt 0:02:03] White mates.} fxe6 {[%emt 0:00:21]} 27. g4 {[%emt 0:01:02]} (27. Re8 Rc7) ({Weaker is} 27. Re8 Rc7 $18) 27... Re7 {[%emt 0:11:12]} 28. Kg3 {[%emt 0:00:20]} Rd7 {[%emt 0:00:37] [#]} 29. Bf6 $1 {[%emt 0:00:28] Weighted Error Value: White=0.35/Black=0.64} 1-0

[Event "XIII Marques de Pombal 2022"]
[Site "Pombal"]
[Date "2022.10.09"]
[Round "7.5"]
[White "Povshednyi, Ivan"]
[Black "Dias, Jose de Oliveira Gas"]
[Result "1-0"]
[ECO "A00"]
[WhiteElo "2140"]
[BlackElo "1397"]
[Annotator "TA"]
[PlyCount "115"]
[EventDate "2022.09.28"]
[EventType "swiss"]
[EventCountry "POR"]
[SourceTitle "playchess.com"]
[Source "ChessBase"]
[SourceQuality "1"]
[TimeControl "5400+30"]

{[%evp 10,114,2,14,26,35,49,6,8,12,76,53,69,70,61,39,89,82,88,73,97,101,150,158,158,152,152,154,173,133,159,157,208,197,210,200,196,176,210,213,183,156,231,240,237,232,227,215,223,221,197,207,245,244,302,285,372,358,461,461,461,461,544,532,578,572,595,592,664,668,1147,1130,1011,1062,1204,1168,1193,1147,1147,1026,1195,1225,1225,1199,1182,1173,1159,1150,1119,1102,2285,2170,2135,1768,3650,3037,2159,2031,29984,29985,29985,29977,29988,29989,29998,29999,29999]} 1. g3 e5 2. c4 Nf6 3. Bg2 c6 4. d4 Bb4+ 5. Bd2 Bxd2+ 6. Qxd2 exd4 {A20: English Opening: 1...e5.} 7. Qxd4 O-O 8. Nf3 Re8 {The position is equal.} 9. Nc3 {[#]} Qb6 $146 (9... d5 $11 {remains equal.}) ({Predecessor:} 9... d5 10. O-O-O Qe7 11. cxd5 Nxd5 12. Nxd5 cxd5 13. Qxd5 Be6 14. Qd6 Rc8+ 15. Kb1 Bf5+ {0-1 (27) Schmitt,C (1844)-Manutschehr,A (1620) Playchess.com INT 2020}) 10. b3 Na6 {[%cal Od7d5]} 11. O-O Nc5 12. e3 Ne6 (12... h6 $14) 13. Qd6 $16 {White stays focused until the end.} Qc7 14. Rad1 {White has more active pieces.} Qa5 15. Qd2 h6 {[#]} (15... Nc7 $142) 16. Ne4 $1 {[%mdl 512]} Qxd2 17. Nxf6+ ({Much worse is} 17. Nexd2 $6 Nc5 $11) 17... gxf6 18. Rxd2 a5 19. Nd4 {[%cal Bf3d4,Bd4e2,Be2c3,Bc3a4][%mdl 32]} Ng7 {Against Nf5} 20. Ne2 Ra7 (20... Rb8 $16 {was worth a try.} 21. Nc3 Re5) 21. Nc3 $18 f5 22. Rfd1 b6 23. Bh3 Re7 24. Na4 Rb7 25. Rc1 c5 (25... Rb8 $16 26. Nc3 Re5) 26. Nc3 Kf8 27. Nb5 Rb8 28. Nd6 Bb7 29. Nxf5 Nxf5 30. Bxf5 Bc6 31. a4 Rd8 32. Rd6 Kg7 33. Rcd1 {[#] Rxc6 is the strong threat.} Re5 34. Rxc6 Rxf5 35. Rxb6 {[%mdl 4096] Endgame KRR-KRR} h5 36. h4 Kf8 37. Rb5 Ke7 38. Rxa5 d6 39. b4 {[%cal Bb3b4,Bb4b5,Bb5b6,Bb6b7][%mdl 32]} Rc8 40. Ra7+ Ke6 41. b5 Re5 42. b6 Re4 43. b7 Rb8 44. a5 {Hoping for a6.} Rxc4 45. a6 {White threatens Ra8 and mate.} Rb4 46. Ra8 R8xb7 47. axb7 Rxb7 48. Rh8 c4 49. Rxh5 c3 50. Rc1 Rc7 51. Ra5 d5 52. Ra3 c2 53. Ra2 f5 54. Raxc2 {White mates.} Rg7 55. h5 Rh7 56. Rc7 Rxh5 57. R1c6+ Ke5 58. Re7# {Weighted Error Value: White=0.06 (flawless) /Black=0.31} 1-0